fUSD/lending_fUSD_20260107
["ID","MTS","AMOUNT","RATE_DAILY","PERIOD"]
[400684652,1767779437031,-500.0,0.00017999,2]
[400684653,1767779437040,-56805.00408162,0.00018,2]
[400684654,1767779437052,-113798.36819169,0.00018,2]
[400684746,1767779439266,-1800.0,0.00018,2]
[400684750,1767779439294,-2910903.94180348,0.00018,2]
[400684752,1767779439306,-312022.18049099,0.00018,2]
[400684754,1767779439317,-460966.95927133,0.00018,2]
[400684756,1767779439327,-621814.14722649,0.00018,2]
[400684758,1767779439337,-151.0,0.00018,2]
[400684760,1767779439347,-151.0,0.00018,2]
[400684763,1767779439363,-163.645189,0.00018,2]
[400684765,1767779439372,-151.0,0.00018,2]
[400684767,1767779439383,-151.0,0.00018,2]
[400684769,1767779439394,-151.0,0.00018,2]
[400684770,1767779439404,-151.0,0.00018,2]
[400684772,1767779439415,-192.935716,0.00018,2]
[400684774,1767779439427,-151.0,0.00018,2]
[400684776,1767779439438,-151.0,0.00018,2]
[400684777,1767779439448,-151.0,0.00018,2]
[400684779,1767779439458,-151.0,0.00018,2]
[400684781,1767779439468,-151.0,0.00018,2]
[400684783,1767779439477,-151.0,0.00018,2]
[400684785,1767779439487,-159.159047,0.00018,2]
[400684787,1767779439498,-159.740768,0.00018,2]
[400684789,1767779439508,-151.0,0.00018,2]
[400684791,1767779439518,-151.0,0.00018,2]
[400684793,1767779439528,-188.606416,0.00018,2]
[400684795,1767779439537,-155.298096,0.00018,2]
[400684797,1767779439547,-151.0,0.00018,2]
[400684799,1767779439556,-151.0,0.00018,2]
[400684801,1767779439566,-151.0,0.00018,2]
[400684803,1767779439575,-1391.05,0.00018014,2]
[400684805,1767779439585,-336.0928788,0.00018037,2]
[400684807,1767779439595,-1903.8,0.00018063,2]
[400684809,1767779439607,-356.57373325,0.00018072,2]
[400684811,1767779439617,-1000.74248534,0.00018142,2]
[400684813,1767779439626,-415.67393386,0.00018142,2]
[400684814,1767779439636,-1000.0,0.00018142,2]
[400684816,1767779439646,-1005.38555235,0.00018142,2]
[400684818,1767779439656,-500.0,0.00018142,2]
[400684820,1767779439665,-537.00577444,0.00018142,2]
[400684822,1767779439674,-1000.0,0.00018142,2]
[400684824,1767779439684,-524.05521125,0.00018142,2]
[400684826,1767779439694,-1000.0,0.00018142,2]
[400684828,1767779439703,-500.0,0.00018142,2]
[400684829,1767779439712,-1391.05,0.00018288,2]
[400684832,1767779439722,-500.0,0.00018288,2]
[400684834,1767779439735,-1415.0455643,0.00018371,2]
[400684836,1767779439745,-1391.05,0.00018562,2]
[400684838,1767779439755,-300.0,0.00018688,2]
[400684840,1767779439764,-194.87815764,0.00018688,2]
[400684842,1767779439774,-1000.0,0.0001869,2]
[400684843,1767779439783,-1500.0,0.0001869,2]
[400684845,1767779439793,-1500.0,0.0001869,2]
[400684847,1767779439803,-1000.0,0.00018795,2]
[400684849,1767779439813,-151.55,0.000188,2]
[400684851,1767779439822,-315.7393433,0.00018832,2]
[400684853,1767779439832,-1391.05,0.00018836,2]
[400684855,1767779439842,-500.0,0.00018836,2]
[400684857,1767779439852,-1903.8,0.00018848,2]
[400684859,1767779439862,-294.01703467,0.0001885,2]
[400684861,1767779439871,-300.0,0.00018999,2]
[400684863,1767779439882,-666.0,0.00018999,2]
[400684865,1767779439892,-300.0,0.00018999,2]
[400684867,1767779439902,-491.22454422,0.00019,2]
[400684870,1767779439916,-46804.23918502,0.00019,2]
[400684872,1767779439926,-4865.62392631,0.00019,2]
[400684874,1767779439936,-300.0,0.00019,2]
[400684876,1767779439946,-357.62033984,0.0001901,7]
[400684878,1767779439955,-1391.05,0.0001911,2]
[400684880,1767779439967,-587.0,0.00019132,2]
[400684882,1767779439977,-587.0,0.00019132,2]
[400684884,1767779439987,-151.0,0.00019178,2]
[400684886,1767779439997,-151.0,0.00019178,2]
[400684887,1767779440006,-151.0,0.00019178,2]
[400684891,1767779440016,-389.713068,0.00019178,2]
[400684893,1767779440026,-389.713068,0.00019178,2]
[400684896,1767779440036,-389.713068,0.00019178,2]
[400684899,1767779440046,-389.713068,0.00019178,2]
[400684902,1767779440055,-2351.0,0.00019208,2]
[400684905,1767779440065,-996.61558298,0.00019238,2]
[400684908,1767779440074,-2000.0,0.00019238,2]
[400684911,1767779440084,-1391.05,0.00019384,2]
[400684914,1767779440094,-500.0,0.00019384,2]
[400684916,1767779440103,-1391.05,0.00019658,2]
[400684921,1767779440116,-183.22060424,0.00019723,2]
[400684924,1767779440127,-480.53249678,0.00019724,2]
[400684927,1767779440137,-2500.0,0.00019786,2]
[400684930,1767779440147,-4913.71415533,0.000199,3]
[400684933,1767779440157,-1391.05,0.00019932,2]
[400684936,1767779440166,-500.0,0.00019932,2]
[400684939,1767779440176,-2212.14447453,0.0001995,15]
[400684942,1767779440186,-626.80784924,0.0001999,2]
[400684944,1767779440196,-151.55,0.0001999,2]
[400684948,1767779440207,-300.0,0.00019999,2]
[400684951,1767779440217,-300.0,0.00019999,2]
[400684954,1767779440227,-10898.38005123,0.0002,2]
[400684957,1767779440237,-1530.76771487,0.0002,2]
[400684960,1767779440248,-25552.78165952,0.0002,2]
[400684961,1767779440259,-758.83798412,0.0002,5]
[400684963,1767779440269,-3088.33,0.0002,2]
[400684965,1767779440279,-3950.0,0.0002,2]
[400684967,1767779440289,-73865.50279952,0.0002,10]
[400684969,1767779440299,-7277.50758892,0.0002,2]
[400684972,1767779440312,-1292.44202786,0.0002,2]
[400684974,1767779440321,-1043.27132118,0.0002,2]
[400684976,1767779440330,-2858.99282028,0.0002,2]
[400684978,1767779440340,-12903.10015762,0.0002,2]
[400684980,1767779440349,-164.06859534,0.0002,2]
[400684981,1767779440359,-1000.0,0.0002,7]
[400684982,1767779440370,-8720.0,0.0002001,2]
[400684983,1767779440381,-1391.19629505,0.00020206,2]
[400684984,1767779440391,-3000.0,0.00020334,2]
[400684985,1767779440401,-537.34234932,0.00020356,2]
[400684986,1767779440411,-300.0,0.00020386,2]
[400684987,1767779440421,-42841.5310567,0.00020387,2]
[400684988,1767779440432,-504.00666552,0.0002048,2]
[400684989,1767779440442,-22619.02724572,0.000207,2]
[400684990,1767779440452,-640.4,0.000207,7]
[400684991,1767779440461,-3500.0,0.00020882,2]
[400684992,1767779440471,-1000.0,0.00020884,2]
[400684993,1767779440481,-51873.58313577,0.000209,30]
[400684994,1767779440491,-823.0,0.00020917,2]
[400684995,1767779440500,-9559.2376856,0.00020921,2]
[400684996,1767779440513,-8893.68820739,0.0002099,2]
[400684997,1767779440522,-1005.17487026,0.00021,2]
[400684998,1767779440532,-350.0,0.00021,2]
[400684999,1767779440541,-3292.0,0.00021108,2]
[400685001,1767779440551,-250.0,0.00021149,2]
[400685003,1767779440560,-4000.0,0.0002143,2]
[400685005,1767779440570,-5000.0,0.00021918,2]
[400685007,1767779440580,-151.0,0.00021918,2]
[400685009,1767779440590,-242.653987,0.00021918,2]
[400685011,1767779440600,-242.653987,0.00021918,2]
[400685013,1767779440611,-242.653987,0.00021918,2]
[400685015,1767779440621,-242.653987,0.00021918,2]
[400685017,1767779440633,-500.0,0.00021918,2]
[400685019,1767779440642,-500.0,0.00021918,2]
[400685021,1767779440651,-500.0,0.00021918,2]
[400685023,1767779440661,-500.0,0.00021918,2]
[400685025,1767779440671,-500.0,0.00021918,2]
[400685027,1767779440680,-500.0,0.00021918,2]
[400685029,1767779440690,-500.0,0.00021918,2]
[400685031,1767779440699,-500.0,0.00021918,2]
[400685033,1767779440709,-500.0,0.00021918,2]
[400685035,1767779440719,-500.0,0.00021918,2]
[400685037,1767779440728,-500.0,0.00021918,2]
[400685039,1767779440738,-171.11953586,0.00021918,2]
[400685041,1767779440749,-500.0,0.00021918,2]
[400685043,1767779440759,-500.0,0.00021918,2]
[400685045,1767779440768,-4018.93893445,0.00021971,2]
[400685047,1767779440776,-3441.3835048,0.00021978,2]
[400685049,1767779440786,-500.0,0.00022,7]
[400685051,1767779440795,-1081.85,0.00022,7]
[400685053,1767779440805,-13484.94,0.00022,2]
[400685055,1767779440816,-343.0,0.0002219,2]
[400685057,1767779440826,-343.0,0.00022221,2]
[400685059,1767779440836,-4282.4,0.00022222,2]
[400685061,1767779440846,-343.0,0.00022495,2]
[400685064,1767779440856,-343.0,0.00022606,2]
[400685066,1767779440866,-343.0,0.00022646,2]
[400685068,1767779440875,-343.0,0.00022695,2]
[400685070,1767779440886,-200.0,0.0002271,2]
[400685072,1767779440895,-207.4,0.0002271,2]
[400685074,1767779440905,-642.94,0.0002271,2]
[400685076,1767779440915,-215.0738,0.0002271,2]
[400685078,1767779440925,-223.0315306,0.0002271,2]
[400685080,1767779440934,-231.28369723,0.0002271,2]
[400685082,1767779440944,-239.84119403,0.0002271,2]
[400685084,1767779440959,-248.71531821,0.0002271,2]
[400685086,1767779440968,-257.91778498,0.0002271,2]
[400685088,1767779440977,-500.0,0.0002271,2]
[400685090,1767779440987,-500.0,0.0002271,2]
[400685092,1767779440997,-267.46074303,0.0002271,2]
[400685094,1767779441007,-202.45261838,0.0002271,2]
[400685096,1767779441018,-500.0,0.0002271,2]
[400685098,1767779441028,-277.35679052,0.0002271,2]
[400685100,1767779441039,-500.0,0.0002271,2]
[400685102,1767779441048,-500.0,0.0002271,2]
[400685104,1767779441058,-500.0,0.0002271,2]
[400685106,1767779441068,-500.0,0.0002271,2]
[400685108,1767779441077,-500.0,0.0002271,2]
[400685110,1767779441086,-500.0,0.0002271,2]
[400685112,1767779441095,-500.0,0.0002271,2]
[400685114,1767779441104,-500.0,0.0002271,2]
[400685116,1767779441114,-500.0,0.0002271,2]
[400685118,1767779441124,-500.0,0.0002271,2]
[400685120,1767779441136,-500.0,0.0002271,2]
[400685122,1767779441145,-500.0,0.0002271,2]
[400685124,1767779441155,-500.0,0.0002271,2]
[400685126,1767779441164,-500.0,0.0002271,2]
[400685128,1767779441175,-500.0,0.0002271,2]
[400685130,1767779441184,-500.0,0.0002271,2]
[400685132,1767779441193,-500.0,0.0002271,2]
[400685134,1767779441203,-500.0,0.0002271,2]
[400685136,1767779441212,-250.0,0.0002271,2]
[400685138,1767779441222,-500.0,0.0002271,2]
[400685140,1767779441232,-250.0,0.0002271,2]
[400685142,1767779441241,-250.0,0.0002271,2]
[400685144,1767779441251,-250.0,0.0002271,2]
[400685146,1767779441261,-250.0,0.0002271,2]
[400685148,1767779441271,-250.0,0.0002271,2]
[400685150,1767779441280,-250.0,0.0002271,2]
[400685152,1767779441289,-250.0,0.0002271,2]
[400685154,1767779441298,-250.0,0.0002271,2]
[400685156,1767779441308,-250.0,0.0002271,2]
[400685158,1767779441317,-250.0,0.0002271,2]
[400685160,1767779441327,-250.0,0.0002271,2]
[400685162,1767779441337,-250.0,0.0002271,2]
[400685164,1767779441347,-250.0,0.0002271,2]
[400685166,1767779441357,-250.0,0.0002271,2]
[400685168,1767779441368,-250.0,0.0002271,2]
[400685170,1767779441378,-250.0,0.0002271,2]
[400685172,1767779441388,-250.0,0.0002271,2]
[400685174,1767779441400,-343.0,0.00022797,2]
[400685176,1767779441410,-343.0,0.00022808,2]
[400685178,1767779441420,-1152.0,0.0002287,2]
[400685180,1767779441431,-343.0,0.00022903,2]
[400685182,1767779441444,-343.0,0.00022923,2]
[400685223,1767779441784,-1000.0,0.00022972,2]
[400685225,1767779441794,-400.0,0.00023,2]
[400685227,1767779441803,-500.0,0.00023004,2]
[400685229,1767779441812,-343.0,0.00023057,2]
[400685231,1767779441822,-343.0,0.00023059,2]
[400685233,1767779441832,-343.0,0.00023104,2]
[400685235,1767779441842,-343.0,0.0002318,2]
[400685238,1767779441852,-3772.0,0.00023196,2]
[400685239,1767779441861,-343.0,0.00023229,2]
[400685242,1767779441871,-13484.94,0.000233,2]
[400685243,1767779441881,-343.0,0.00023352,2]
[400685245,1767779441890,-343.0,0.00023368,2]
[400685247,1767779441900,-1081.85,0.000234,7]
[400685249,1767779441910,-343.0,0.00023709,2]
[400685252,1767779441920,-343.0,0.00023733,2]
[400685253,1767779441929,-343.0,0.00023791,2]
[400685255,1767779441938,-2032.99399136,0.000239,30]
[400685257,1767779441947,-343.0,0.00023932,2]
[400685259,1767779441956,-343.0,0.00023992,2]
[400685261,1767779441969,-500.14706177,0.00024,2]
[400685263,1767779441978,-287.61899177,0.00024079,2]
[400685265,1767779441987,-343.0,0.00024172,2]
[400685267,1767779441997,-500.0,0.00024219,2]
[400685270,1767779442007,-158.31125176,0.00024255,2]
[400685271,1767779442017,-537.34234932,0.00024374,2]
[400685273,1767779442026,-3240.0,0.00024658,2]
[400685276,1767779442037,-187.47,0.00024658,2]
[400685278,1767779442047,-151.0,0.00024658,2]
[400685279,1767779442056,-1307.13264214,0.0002487,2]
[400685281,1767779442065,-733.61,0.00024888,2]
[400685283,1767779442075,-450.0,0.00025,2]
[400685285,1767779442084,-438.0,0.00025004,2]
[400685288,1767779442094,-335.24,0.00025046,2]
[400685289,1767779442104,-1000.0,0.0002506,2]
[400685291,1767779442113,-343.96,0.00025349,2]
[400685293,1767779442123,-298.26089446,0.00025448,2]
[400685295,1767779442135,-335.24,0.00025985,2]
[400685298,1767779442144,-1776.95,0.0002599,2]
[400685299,1767779442155,-13484.94,0.00026,2]
[400685302,1767779442165,-4018.93893445,0.00026042,2]
[400685304,1767779442175,-289.71,0.00026084,2]
[400685306,1767779442184,-158.31125176,0.00026276,2]
[400685308,1767779442194,-1081.85,0.000264,7]
[400685310,1767779442204,-309.29654756,0.00026817,2]
[400685312,1767779442213,-335.24,0.00026924,2]
[400685314,1767779442224,-150.0,0.00027369,2]
[400685316,1767779442233,-351.2,0.00027397,5]
[400685317,1767779442243,-330.6,0.00027397,4]
[400685319,1767779442253,-348.4,0.00027397,6]
[400685321,1767779442263,-350.8,0.00027397,5]
[400685323,1767779442273,-517.76,0.00027397,30]
[400685325,1767779442282,-151.0,0.00027397,7]
[400685327,1767779442292,-151.0,0.00027397,7]
[400685329,1767779442301,-151.0,0.00027397,7]
[400685331,1767779442310,-151.0,0.00027397,7]
[400685333,1767779442319,-337.15,0.00027397,2]
[400685335,1767779442328,-70342.82,0.00027397,2]
[400685337,1767779442340,-2390.29,0.00027397,2]
[400685340,1767779442350,-9999.99,0.00027397,2]
[400685342,1767779442360,-9999.99,0.00027397,2]
[400685343,1767779442371,-10052.25,0.00027397,10]
[400685346,1767779442382,-999.99,0.00027397,2]
[400685348,1767779442392,-150.99,0.00027397,2]
[400685349,1767779442403,-299.99,0.00027397,12]
[400685352,1767779442412,-9999.99,0.00027397,2]
[400685354,1767779442423,-9999.99,0.00027397,2]
[400685356,1767779442432,-3174.75,0.00027397,2]
[400685358,1767779442443,-280.34,0.00027565,2]
[400685360,1767779442456,-335.24,0.00027863,2]
[400685362,1767779442465,-219.69716765,0.00028033,5]
[400685364,1767779442475,-500.0,0.00028033,5]
[400685366,1767779442485,-273.37639111,0.00028033,5]
[400685368,1767779442494,-162.68077259,0.00028033,5]
[400685370,1767779442503,-554.22609528,0.00028033,5]
[400685372,1767779442513,-160.50727141,0.00028033,5]
[400685374,1767779442522,-249.33886025,0.00028033,5]
[400685376,1767779442531,-500.0,0.00028033,5]
[400685378,1767779442541,-573.26613188,0.00028033,5]
[400685380,1767779442550,-502.46613412,0.00028033,5]
[400685382,1767779442559,-502.71154611,0.00028033,5]
[400685384,1767779442568,-500.0,0.00028033,5]
[400685386,1767779442577,-502.91123573,0.00028033,5]
[400685388,1767779442586,-500.0,0.00028033,5]
[400685390,1767779442595,-501.26859067,0.00028033,5]
[400685392,1767779442605,-500.0,0.00028033,5]
[400685394,1767779442614,-500.0,0.00028033,5]
[400685396,1767779442623,-500.0,0.00028033,5]
[400685398,1767779442633,-320.74051982,0.00028186,2]
[400685400,1767779442642,-158.31125176,0.00028297,2]
[400685402,1767779442652,-13484.94,0.000283,2]
[400685404,1767779442661,-537.34234932,0.00028393,2]
[400685407,1767779442670,-500.0,0.00028581,5]
[400685409,1767779442681,-1000.0,0.00028581,5]
[400685411,1767779442690,-503.56850763,0.00028581,5]
[400685413,1767779442699,-1000.0,0.00028581,5]
[400685416,1767779442709,-1000.0,0.00028581,5]
[400685418,1767779442720,-335.24,0.00028803,2]
[400685420,1767779442729,-1500.0,0.00029129,5]
[400685422,1767779442740,-509.85151383,0.00029129,5]
[400685424,1767779442750,-332.60791905,0.00029555,2]
[400685426,1767779442760,-1081.85,0.000296,7]
[400685428,1767779442770,-2000.0,0.000296,2]
[400685431,1767779442779,-166.66,0.00029669,30]
[400685434,1767779442789,-2000.0,0.00029677,5]
[400685436,1767779442798,-509.0,0.00029877,2]
[400685438,1767779442807,-264.82395545,0.0003,30]
[400685441,1767779442816,-1921.22,0.0003,14]
[400685443,1767779442826,-175.0,0.0003,14]
[400685445,1767779442835,-4018.93893445,0.00030114,2]
[400685448,1767779442844,-785.08,0.000302,30]
[400685451,1767779442854,-503.18143071,0.00030225,5]
[400685455,1767779442863,-166.66,0.00030294,30]
[400685459,1767779442873,-158.31125176,0.00030319,2]
[400685462,1767779442882,-175.0,0.00030411,14]
[400685464,1767779442892,-151.0,0.00030419,7]
[400685466,1767779442902,-151.0,0.00030422,31]
[400685468,1767779442911,-242.653987,0.00030422,31]
[400685470,1767779442921,-242.653987,0.00030422,31]
[400685472,1767779442931,-242.653987,0.00030422,31]
[400685474,1767779442940,-242.653987,0.00030422,31]
[400685476,1767779442952,-151.0,0.00030422,31]
[400685478,1767779442963,-151.0,0.00030422,7]
[400685479,1767779442973,-151.0,0.00030422,31]
[400685480,1767779442983,-151.0,0.00030422,31]
[400685481,1767779442993,-257995.59,0.00030422,2]
[400685482,1767779443004,-500.0,0.00030436,20]
[400685484,1767779443013,-13484.94,0.000305,2]
[400685486,1767779443024,-290.08099,0.000305,31]
[400685487,1767779443039,-166.66,0.00030919,30]
[400685489,1767779443056,-344.91441206,0.00030924,2]
[400685491,1767779443067,-509.0,0.00030943,3]
[400685493,1767779443076,-400.0,0.00031,7]
[400685495,1767779443086,-2647.6,0.00031075,2]
[400685497,1767779443095,-160.42,0.00031252,2]
[400685500,1767779443106,-151.0,0.00031342,31]
[400685502,1767779443115,-151.0,0.00031342,31]
[400685503,1767779443125,-151.0,0.00031342,31]
[400685505,1767779443135,-151.0,0.00031342,31]
[400685507,1767779443145,-151.0,0.00031342,31]
[400685509,1767779443155,-151.0,0.00031342,31]
[400685512,1767779443164,-151.0,0.00031342,31]
[400685514,1767779443175,-161.58,0.00031342,2]
[400685515,1767779443184,-1330.0,0.00031342,2]
[400685517,1767779443193,-614.0,0.00031342,2]
[400685520,1767779443203,-3467.0,0.00031342,2]
[400685521,1767779443213,-1405.0,0.00031342,2]
[400685523,1767779443222,-1267.498,0.00031342,2]
[400685526,1767779443233,-505.0,0.00031342,2]
[400685528,1767779443243,-250.0,0.00031342,2]
[400685530,1767779443253,-6551.0,0.00031342,2]
[400685532,1767779443263,-568.55,0.00031342,2]
[400685534,1767779443273,-4617.0,0.00031342,2]
[400685536,1767779443283,-1081.85,0.000314,7]
[400685538,1767779443293,-151.0,0.00031507,31]
[400685540,1767779443303,-151.0,0.00031507,31]
[400685542,1767779443312,-151.0,0.00031507,31]
[400685544,1767779443321,-151.0,0.00031507,31]
[400685546,1767779443331,-151.0,0.00031507,31]
[400685548,1767779443341,-151.0,0.00031507,31]
[400685550,1767779443351,-151.0,0.00031507,30]
[400685552,1767779443360,-151.0,0.00031507,30]
[400685554,1767779443369,-151.0,0.00031507,31]
[400685556,1767779443378,-151.0,0.00031507,31]
[400685558,1767779443389,-151.0,0.00031507,31]
[400685560,1767779443398,-151.0,0.00031507,31]
[400685562,1767779443408,-151.0,0.00031507,31]
[400685564,1767779443417,-151.0,0.00031507,31]
[400685566,1767779443428,-151.0,0.00031507,31]
[400685568,1767779443437,-151.0,0.00031507,31]
[400685570,1767779443447,-151.0,0.00031507,31]
[400685572,1767779443457,-151.0,0.00031507,31]
[400685574,1767779443466,-151.0,0.00031507,31]
[400685576,1767779443476,-151.0,0.00031507,31]
[400685578,1767779443486,-284.249783,0.00031507,31]
[400685580,1767779443496,-162.167643,0.00031507,31]
[400685582,1767779443505,-151.0,0.00031507,7]
[400685584,1767779443515,-151.0,0.00031507,7]
[400685586,1767779443524,-151.0,0.00031507,31]
[400685588,1767779443534,-151.0,0.00031507,31]
[400685590,1767779443543,-161.064897,0.00031507,31]
[400685592,1767779443552,-151.0,0.00031507,31]
[400685594,1767779443562,-151.0,0.00031507,31]
[400685598,1767779443571,-151.0,0.00031507,31]
[400685602,1767779443580,-151.0,0.00031507,31]
[400685605,1767779443590,-191.506953,0.00031507,31]
[400685608,1767779443600,-453.703657,0.00031507,31]
[400685611,1767779443609,-453.703657,0.00031507,31]
[400685614,1767779443618,-453.703657,0.00031507,31]
[400685618,1767779443627,-453.703657,0.00031507,31]
[400685621,1767779443639,-201.287324,0.00031507,31]
[400685624,1767779443648,-172.224925,0.00031507,31]
[400685627,1767779443658,-151.0,0.00031507,31]
[400685630,1767779443667,-238.68837173,0.00031507,31]
[400685633,1767779443676,-281.922443,0.00031507,31]
[400685636,1767779443685,-151.0,0.00031507,31]
[400685639,1767779443695,-151.0,0.00031507,31]
[400685642,1767779443704,-151.0,0.00031507,31]
[400685645,1767779443713,-983.95629,0.00031507,31]
[400685648,1767779443723,-151.0,0.00031507,31]
[400685652,1767779443733,-983.95629,0.00031507,31]
[400685655,1767779443742,-242.487242,0.00031507,31]
[400685658,1767779443752,-983.95629,0.00031507,31]
[400685661,1767779443764,-983.95629,0.00031507,31]
[400685664,1767779443774,-777.305943,0.00031507,31]
[400685667,1767779443783,-777.305943,0.00031507,31]
[400685670,1767779443792,-777.305943,0.00031507,31]
[400685673,1767779443801,-777.305943,0.00031507,31]
[400685674,1767779443811,-151.0,0.00031507,31]
[400685678,1767779443820,-151.0,0.00031507,31]
[400685680,1767779443830,-151.0,0.00031507,31]
[400685682,1767779443840,-151.0,0.00031507,31]
[400685685,1767779443849,-151.0,0.00031507,31]
[400685687,1767779443858,-151.0,0.00031507,31]
[400685689,1767779443869,-151.0,0.00031507,31]
[400685690,1767779443878,-160.478343,0.00031507,31]
[400685693,1767779443888,-780.478158,0.00031507,31]
[400685695,1767779443898,-780.478158,0.00031507,31]
[400685697,1767779443907,-780.478158,0.00031507,31]
[400685698,1767779443916,-780.478158,0.00031507,31]
[400685700,1767779443925,-780.478158,0.00031507,31]
[400685702,1767779443934,-780.478158,0.00031507,31]
[400685704,1767779443943,-151.0,0.00031507,31]
[400685706,1767779443957,-780.478158,0.00031507,31]
[400685708,1767779443966,-160.613043,0.00031507,31]
[400685710,1767779443975,-780.478158,0.00031507,31]
[400685713,1767779443984,-203.245294,0.00031507,31]
[400685715,1767779443994,-151.0,0.00031507,31]
[400685717,1767779444003,-151.0,0.00031507,31]
[400685719,1767779444012,-151.0,0.00031507,31]
[400685721,1767779444021,-151.363856,0.00031507,31]
[400685723,1767779444032,-151.363856,0.00031507,31]
[400685725,1767779444042,-151.363856,0.00031507,31]
[400685727,1767779444051,-151.363856,0.00031507,31]
[400685728,1767779444060,-151.0,0.00031507,31]
[400685730,1767779444070,-151.0,0.00031507,31]
[400685732,1767779444079,-151.363856,0.00031507,31]
[400685734,1767779444089,-151.363856,0.00031507,31]
[400685736,1767779444098,-151.0,0.00031507,31]
[400685738,1767779444107,-151.0,0.00031507,31]
[400685740,1767779444116,-151.363856,0.00031507,31]
[400685742,1767779444126,-151.363856,0.00031507,31]
[400685744,1767779444136,-555.026881,0.00031507,31]
[400685746,1767779444145,-555.026881,0.00031507,31]
[400685748,1767779444155,-555.026881,0.00031507,31]
[400685750,1767779444164,-555.026881,0.00031507,31]
[400685752,1767779444173,-555.026881,0.00031507,31]
[400685754,1767779444183,-555.026881,0.00031507,31]
[400685756,1767779444192,-555.026881,0.00031507,31]
[400685759,1767779444202,-555.026881,0.00031507,31]
[400685760,1767779444211,-255.891169,0.00031507,30]
[400685762,1767779444221,-255.891169,0.00031507,30]
[400685764,1767779444230,-255.891169,0.00031507,30]
[400685766,1767779444239,-255.891169,0.00031507,30]
[400685768,1767779444249,-255.891169,0.00031507,30]
[400685770,1767779444258,-255.891169,0.00031507,30]
[400685772,1767779444268,-255.891169,0.00031507,30]
[400685774,1767779444278,-255.891169,0.00031507,30]
[400685776,1767779444288,-151.0,0.00031507,31]
[400685778,1767779444298,-151.00004,0.00031507,31]
[400685780,1767779444308,-571.097463,0.00031507,31]
[400685782,1767779444317,-151.0,0.00031507,31]
[400685784,1767779444327,-571.097463,0.00031507,31]
[400685786,1767779444336,-151.0,0.00031507,31]
[400685788,1767779444346,-571.097463,0.00031507,31]
[400685790,1767779444355,-151.0,0.00031507,31]
[400685792,1767779444365,-571.097463,0.00031507,31]
[400685794,1767779444374,-151.0,0.00031507,31]
[400685796,1767779444384,-571.097463,0.00031507,31]
[400685798,1767779444393,-571.097463,0.00031507,31]
[400685800,1767779444403,-525.72357,0.00031507,31]
[400685802,1767779444413,-525.72357,0.00031507,31]
[400685804,1767779444424,-571.097463,0.00031507,31]
[400685806,1767779444434,-571.097463,0.00031507,31]
[400685808,1767779444443,-525.72357,0.00031507,31]
[400685810,1767779444452,-525.72357,0.00031507,31]
[400685812,1767779444462,-204.787634,0.00031507,31]
[400685814,1767779444471,-525.72357,0.00031507,31]
[400685816,1767779444480,-204.787634,0.00031507,31]
[400685818,1767779444490,-525.72357,0.00031507,31]
[400685820,1767779444499,-204.787634,0.00031507,31]
[400685823,1767779444513,-204.787634,0.00031507,31]